Cogmind - Beta 13 @@@ ROGUE MODE // 2024.04.23 @ 20:57:05 Player: darki Result: Destroyed by 8R-AWN with 8R-AWN's Boregun Performance ------------- Evolutions (0) 0 Regions Visited (3) 600 Robots Destroyed (23) 115 Value Destroyed (451) 451 Prototype IDs (25) 500 Alien Tech Used (0) 0 Bonus (261) 261 TOTAL SCORE: 1927 Bonus ------- Aligned with FarCom 300 Friendly Fire -39 Cogmind --------- Core Integrity 0/250 Matter 220/300 Energy 88/250 System Corruption 9% Temperature Cool (0) Movement Walking (260) Ox2 Location -10/Exiles Parts ------- > --- POWER (1) -------- Ion Engine > --- PROPULSION (2) --- Light Treads Aluminum Leg > --- UTILITY (2) ------ Medium Armor Plating Medium Armor Plating > --- WEAPON (2) ------- Light EM Pulse Cannon Light EM Pulse Cannon > --- INVENTORY (5) ---- Reinforced Deuterium Engine Aluminum Leg Medium Armor Plating Shotgun Shotgun Peak State ------------ > --- POWER ------------ Ion Engine > --- PROPULSION ------- Light Treads Light Treads > --- UTILITY ---------- Heat Sink High-capacity Storage Unit > --- WEAPON ----------- Latent Energy Streamer > --- INVENTORY -------- Ion Engine Nuclear Core Reinforced Deuterium Engine Fission Core Aluminum Leg Aluminum Leg Medium Armor Plating Medium Armor Plating Medium Armor Plating Medium Armor Plating Hacking Suite Light EM Pulse Cannon Light EM Pulse Cannon Light EM Pulse Cannon Shotgun Shotgun Shotgun Shotgun [Rating: 19] Favorites ----------- Power Ion Engine Engine Ion Engine Propulsion Light Treads Treads Light Treads Leg Aluminum Leg Utility High-capacity Storage Unit Device Heat Sink Storage High-capacity Storage Unit Protection Medium Armor Plating Weapon Medium Laser Energy Gun Medium Laser Energy Cannon Light EM Pulse Cannon Build | -11 -10 -10 -10 ------- Run | Yrd Mat Min Exi Slots Evolved . | . . . . Power . | . . . . Propulsion . | . . . . Utility . | . . . . Weapon . | . . . . Parts Attached 22 | . 14 . 8 Power 4 | . 3 . 1 Engine 4 | . 3 . 1 Core . | . . . . Reactor . | . . . . Propulsion 3 | . 2 . 1 Treads 2 | . 2 . . Leg 1 | . . . 1 Wheel . | . . . . Hover . | . . . . Flight . | . . . . Utility 6 | . 4 . 2 Device 1 | . 1 . . Storage 3 | . 3 . . Processor . | . . . . Hackware . | . . . . Protection 2 | . . . 2 Artifact . | . . . . Weapon 9 | . 5 . 4 Energy Gun 3 | . 3 . . Energy Cannon 6 | . 2 . 4 Ballistic Gun . | . . . . Ballistic Cannon . | . . . . Launcher . | . . . . Special Weapon . | . . . . Impact Weapon . | . . . . Slashing Weapon . | . . . . Piercing Weapon . | . . . . Special Melee Weapon . | . . . . Unidentified Prototypes . | . . . . Parts Lost 5 | . 2 . 3 Power 1 | . . . 1 Propulsion 2 | . 1 . 1 Utility . | . . . . Weapon 2 | . 1 . 1 Highest Loss Streak 2 | . 1 . 2 To Critical Strikes 3 | . . . 3 Average Slot Usage (%) 90 | . 96 100 73 Engine 13 | . 14 14 13 Treads 20 | . 17 28 26 Leg 6 | . 9 . . Device 11 | . 11 14 13 Storage 13 | . 14 14 13 Energy Gun 15 | . 22 . . Energy Cannon 5 | . 5 28 2 Naked Turns . | . . . . Heaviest Build 56 | 12 54 54 56 Greatest Support 40 | 20 40 40 40 Greatest Overweight (x) 2 | . 2 1 2 Average Overweight (x) 1 | . 1 1 1 Largest Inventory Capacity 20 | . 20 20 20 Average Capacity 19 | . 18 20 19 Most Carried 20 | . 20 20 20 Average Carried 12 | . 9 20 18 Final Capacity 20 | 8 20 20 5 Final Carried 20 | 6 20 20 5 Class Distribution -------------------- 100% | Mutant Dominant Class ---------------- Mutant | -10/Materials Mutant | -10/Mines Mutant | -10/Exiles Resources | -11 -10 -10 -10 ----------- Run | Yrd Mat Min Exi Matter Collected 354 | 200 154 . . Remotely . | . . . . Salvage Created 838 | . 802 36 . Parts 38 | . 36 2 . Haulers Intercepted 2 | . 2 . . Recyclers Shooed 1 | . 1 . . Parts Field Recycled . | . . . . Retrieved Matter . | . . . . Parts Self-Destructed . | . . . . Prevented . | . . . . Kills | -11 -10 -10 -10 ------- Run | Yrd Mat Min Exi Combat Hostiles Destroyed 14 | . 12 2 . Guns 12 | . 12 . . Cannons 2 | . . 2 . Classes Destroyed 8 | . 8 . . Worker 1 | . 1 . . Builder 2 | . 2 . . Hauler 2 | . 2 . . Recycler 2 | . 2 . . Operator 1 | . 1 . . Watcher 1 | . 1 . . Swarmer 5 | . 3 2 . Grunt 9 | . 9 . . Best Kill Streak 4 | . 4 2 . Combat Bots Only 3 | . 3 2 . Max Kills in Single Turn 2 | . 2 1 . Gunslinging 1 | . 1 . . Exploded . | . . . . Melee . | . . . . Uniques/NPCs Destroyed . | . . . . Combat | -11 -10 -10 -10 -------- Run | Yrd Mat Min Exi Hostile Shots Fired 114 | . 56 15 43 Missed 35 | . 21 . 14 Damage Taken 1323 | . 529 142 652 Core 263 | . 131 21 111 Absorbed by Shields . | . . . . Core Remaining (%) 100 | 100 . . . Volleys Fired 71 | . 60 5 6 Largest 2 | . 2 2 1 Hottest 112 | . 112 112 60 Shots Fired 134 | . 118 10 6 Gun 108 | . 108 . . Cannon 26 | . 10 10 6 Launcher . | . . . . Special . | . . . . Kinetic . | . . . . Thermal 106 | . 106 . . Explosive . | . . . . Electromagnetic 28 | . 12 10 6 Robot Hit Streak 12 | . 12 3 5 Robot Miss Streak 5 | . 5 1 1 Penetration Max . | . . . . Secondary Targets 1 | . 1 . . Max Gunslinging Chain 1 | . 1 . . Shots Hit Robots 81 | . 70 6 5 Core Hits 41 | . 37 2 2 Critical Kills . | . . . . Critical Parts Destroyed . | . . . . Critical Strikes 9 | . 8 . 1 Burn 8 | . 8 . . Corrupt 1 | . . . 1 Melee Attacks . | . . . . Impact . | . . . . Slashing . | . . . . Piercing . | . . . . Sneak Attacks . | . . . . Combat Hostiles . | . . . . Follow-up Attacks . | . . . . Damage Inflicted 1290 | . 1100 168 22 Guns 834 | . 834 . . Cannons 285 | . 168 111 6 Explosions 168 | . 95 57 16 Melee . | . . . . Ramming 3 | . 3 . . Kinetic . | . . . . Thermal 960 | . 903 57 . Explosive . | . . . . Electromagnetic 327 | . 194 111 22 Impact . | . . . . Slashing . | . . . . Piercing . | . . . . Highest Corruption 9 | . 1 1 9 Average Corruption 1 | . 1 1 1 Corruption Purged . | . . . . Corruption Blocked . | . . . . Effects 17 | . 9 1 7 Message Errors 4 | . 1 . 3 Matter Fused 6 | . 4 . 2 Heat Flow Errors 3 | . 2 . 1 Energy Discharges 2 | . 1 1 . Parts Rejected 1 | . 1 . . Alerts 1 | . . . 1 Overload Shots . | . . . . Overflow Damage 31 | . 14 17 . Projectiles 17 | . . 17 . Explosions 14 | . 14 . . Melee . | . . . . Knockbacks . | . . . . Impact . | . . . . Kinetic . | . . . . Secondary . | . . . . Self-Inflicted Damage 210 | . 40 30 140 Shots 4 | . 1 1 2 Rammed 1 | . 1 . . Targets Rammed 1 | . 1 . . Kicked . | . . . . Crushed . | . . . . Highest Temperature 275 | . 275 96 165 Average Temperature 64 | . 67 40 41 Received Heat Transfer 183 | . 183 . . Siege Activations . | . . . . Robots Corrupted . | . . . . Combat Hostiles . | . . . . Parts Fried 2 | . 1 1 . Impact Corruptions . | . . . . Robots Melted . | . . . . Combat Hostiles . | . . . . Parts Melted 11 | . 11 . . Heat Transferred 3197 | . 3147 50 . Parts Sabotaged . | . . . . Parts Stolen . | . . . . Parts Stripped . | . . . . Power Chain Reactions 2 | . 2 . . Latent Energy Used 361 | . . . 361 LE Corruption 6 | . . . 6 Alert | -11 -10 -10 -10 ------- Run | Yrd Mat Min Exi Peak Influence 128 | . 128 95 . Initial 18 | . . 18 . Average 67 | . 65 87 . Maximum Alert Level . | . . . . Low Security (%) 100 | . 100 100 . Level 1 . | . . . . Level 2 . | . . . . Level 3 . | . . . . Level 4 . | . . . . Level 5 . | . . . . High Security . | . . . . Max Security . | . . . . Squads Dispatched 3 | . 3 . . Investigation 1 | . 1 . . Extermination . | . . . . Reinforcement 2 | . 2 . . Assault . | . . . . Garrison . | . . . . Intercept . | . . . . Searches Triggered . | . . . . Construction Impeded . | . . . . Haulers Reinforced . | . . . . Active Scanning Responses . | . . . . Cargo Convoy Interrupts . | . . . . Stealth | -11 -10 -10 -10 --------- Run | Yrd Mat Min Exi Distress Signals 1 | . 1 . . Communications Jammed . | . . . . Distress Signals . | . . . . Times Spotted 32 | . 28 3 1 Peak Tracking Total 4 | . 4 3 2 Tactical Retreats . | . . . . Traps | -11 -10 -10 -10 ------- Run | Yrd Mat Min Exi Traps Triggered 4 | . 4 . . Indirectly . | . . . . Trap Hack Attempts . | . . . . Triggered . | . . . . Disarmed . | . . . . Reprogrammed . | . . . . Reused . | . . . . Traps Extracted . | . . . . Installed . | . . . . Triggered . | . . . . Machines | -11 -10 -10 -10 ---------- Run | Yrd Mat Min Exi Machines Disabled 2 | . . 1 1 Max in Single Turn 1 | . . 1 1 Machines Repaired . | . . . . Machines Dismantled . | . . . . Machines Sabotaged . | . . . . Overloaded Fab Kills . | . . . . Hacking | -11 -10 -10 -10 --------- Run | Yrd Mat Min Exi Machines Accessed 4 | . 2 . 2 Terminals 2 | . 2 . . Fabricators . | . . . . Repair Stations . | . . . . Recycling Units . | . . . . Scanalyzers . | . . . . Garrison Access . | . . . . Total Hacks 13 | . 8 . 5 Successful 8 | . 3 . 5 Failed 5 | . 5 . . Catastrophic . | . . . . Database Lockouts . | . . . . Manual 1 | . . . 1 Terminals 8 | . 8 . . Fabricators . | . . . . Repair Stations . | . . . . Recycling Units . | . . . . Scanalyzers . | . . . . Garrison Access . | . . . . Terminal Hacks 8 | . 3 . 5 Record 4 | . . . 4 Robot Analysis 1 | . 1 . . Prototype ID Bank 1 | . 1 . . Hauler Manifests 1 | . 1 . . Derelict Proto ID Bank 1 | . . . 1 Fabricator Hacks . | . . . . Repair Station Hacks . | . . . . Recycling Unit Hacks . | . . . . Scanalyzer . | . . . . Garrison Access Hacks . | . . . . Unauthorized Hacks . | . . . . Terminals . | . . . . Fabricators . | . . . . Repair Stations . | . . . . Recycling Units . | . . . . Scanalyzers . | . . . . Garrison Access . | . . . . Data Cores Recovered . | . . . . Used . | . . . . Hacking Detections 1 | . 1 . . Full Trace Events . | . . . . Feedback Events . | . . . . Feedback Blocked . | . . . . Robot Schematics Acquired . | . . . . Robots Built . | . . . . Authchips . | . . . . Time . | . . . . Total Robot Build Rating . | . . . . Part Schematics Acquired . | . . . . Parts Built . | . . . . Authchips . | . . . . Time . | . . . . Total Part Build Rating . | . . . . Parts Repaired . | . . . . Time . | . . . . Parts Recycled . | . . . . Recycled Matter . | . . . . Retrieved Matter . | . . . . Retrieved Components . | . . . . Parts Scanalyzed . | . . . . Part Schematics Acquired . | . . . . Parts Damaged . | . . . . Bothacking | -11 -10 -10 -10 ------------ Run | Yrd Mat Min Exi Used RIF Installer . | . . . . Robots Hacked . | . . . . Non-combat . | . . . . Combat . | . . . . Robot Hacks Applied . | . . . . Relay Couplers Released . | . . . . Fabnet Peak Effective % . | . . . . Robots Rewired . | . . . . Allies Hacked . | . . . . Hacks Repelled . | . . . . Allies | -11 -10 -10 -10 -------- Run | Yrd Mat Min Exi Total Allies . | . . . . Largest Group . | . . . . Highest-Rated Group . | . . . . Highest-Rated Ally . | . . . . Total Orders . | . . . . Ally Attacks . | . . . . Total Damage . | . . . . Kills . | . . . . Allies Corrupted . | . . . . Allies Melted . | . . . . Intel | -11 -10 -10 -10 ------- Run | Yrd Mat Min Exi Robot Analysis Total 1 | . 1 . . Derelict Logs Recovered . | . . . . Drone Launches . | . . . . Drone Recoveries . | . . . . Exploration | -11 -10 -10 -10 ------------- Run | Yrd Mat Min Exi Turns Passed 2171 | . 1486 98 587 Spaces Moved 786 | 1 532 33 220 Core . | . . . . Treads 591 | . 339 33 219 Legs 195 | 1 193 . 1 Wheels . | . . . . Hover . | . . . . Flight . | . . . . Fastest Speed 120 | 120 120 240 240 Average Speed 232 | 120 229 240 240 Slowest Speed 260 | 120 260 240 260 Overloaded Moves . | . . . . Propulsion Burnouts . | . . . . Robots Hopped . | . . . . Cave-ins Triggered . | . . . . Exploration Rate (%) 34 | 2 64 13 58 Regions Visited 3 Branch Regions 2 Pre-discovered Areas 1 | . . . 1 Known Exits Taken . | . . . . Unknown Exits Taken 3 | 1 1 1 . Scrap Searched . | . . . . Spaces Dug . | . . . . Terrain Destroyed 45 | . 5 10 30 Melee . | . . . . Projectile . | . . . . AOE 45 | . 5 10 30 Terrain Rammed . | . . . . Walls Destroyed . | . . . . Machines Disabled . | . . . . Actions | -11 -10 -10 -10 --------- Run | Yrd Mat Min Exi Total 1000 | . 680 43 277 Wait 73 | . 39 6 28 Move 783 | . 531 32 220 Hop . | . . . . Pick Up 23 | . 19 . 4 Fast Attach 7 | . 6 . 1 Attach 9 | . 3 . 6 Detach 6 | . 4 . 2 Swap 6 | . 5 . 1 Drop 21 | . 12 . 9 Fire 71 | . 60 5 6 Melee . | . . . . Ram . | . . . . Kick . | . . . . Crush 1 | . 1 . . Escape Stasis . | . . . . Rewire . | . . . . Trap . | . . . . Miscellaneous . | . . . . Route ------- -11/Scrapyard -10/Materials (discovered 3 exits: [*Mat x2] / [*Min]) -10/Mines -10/Exiles History --------- Turn | Location | Event 1 | -11/Scrapyard | Discovered new exit (range 0) 1 | -11/Scrapyard | Entered Materials 301 | -10/Materials | Build established: Mutant 410 | -10/Materials | Discovered new exit (range 8) 782 | -10/Materials | Discovered new exit (range 8) 810 | -10/Materials | Core integrity fell below 50% 1133 | -10/Materials | Discovered new exit (range 13) 1487 | -10/Materials | Entered Mines 1576 | -10/Mines | Deemed a non-threat by the Exiles lab entrance 1576 | -10/Mines | Discovered new exit (range 5) 1585 | -10/Mines | Entered Exiles 1655 | -10/Exiles | Met 8R-AWN 1696 | -10/Exiles | Met EX-HEX 1770 | -10/Exiles | Met EX-BIN 1808 | -10/Exiles | Aligned with FarCom system 1811 | -10/Exiles | Given EX-Vault access code 1866 | -10/Exiles | Opened EX-Vault 1888 | -10/Exiles | Found Latent Energy Streamer 1964 | -10/Exiles | Warned to stay clear of 0b10 Research branches 1965 | -10/Exiles | Exiles lab attacked by MAIN.C 2045 | -10/Exiles | Learned location of Zion (-7) 2120 | -10/Exiles | Attacked by the Exiles 2134 | -10/Exiles | Core integrity fell below 20% 2172 | -10/Exiles | Destroyed by 8R-AWN with 8R-AWN's Boregun Last Messages --------------- 02161_ Penetrated by HV Slug. 02161_ HV Slug penetrates Earth. 02161_ Penetrated by HV Slug. 02161_ Critical hit (Destroy). 02161_ Lgt. EM Pulse Cannon destroyed. 02161_ HV Slug penetrates Earth. 02164_ HV Slug penetrates Wall. 02164_ Penetrated by HV Slug. 02164_ HV Slug penetrates Earth. 02167_ Acquired Lgt. EM Pulse Cannon. 02167_ Penetrated by HV Slug. 02167_ Critical hit (Destroy). 02167_ HV Slug penetrates Earth. 02167_ Penetrated by HV Slug. 02167_ HV Slug penetrates Earth. 02169_ HV Slug penetrates Machine. 02169_ Penetrated by HV Slug. 02169_ HV Slug penetrates Earth. 02171_ W INENTSCY2DS1OLWBDKA8SV8 02172_ Penetrated by HV Slug. Map ----- +----------------------------------------------------+ | ?????????????????????????????????????????????????? | | ?????????????????????????????????????????????????? | | ?????????????????????????????????????????????????? | | ?????????????????????????????????????????????????? | | ?????????????????????????????????????????????????? | | ?????????????????????????????????????????????????? | | ?????????????????????????????????????????????????? | | ?????????????????????????????????????????????????? | | ?????????????????????????????????????????????????? | | ?????????????????????????????????????????????????? | | ?????????????????????????????????????????????????? | | ?????????????????????????????????????????????????? | | ?????????????????????????????????????????????????? | | ????????????? ?????????????????????????????????? | | ????????????? ????????????????????????????????? | | ????????????# ??#####????????????????????????? | | ????????????# ### ###?????????????????????? | | ?????????????# # ##???#######??????????? | | ?????????????# ;; ##??#!!! "#??????????? | | ?????????????# ???# "#??????????? | | ??????????????# #???# "#??????????? | | ??????????????##" ;#??## ""#??????????? | | ??????????????#"" g! ;####" ""#??????????? | | ?????????????????# [!* ##" ""#??????????? | | ??????????????????# *!] ;" #????????????? | | ??????????????????#"## ![@ #????????????? | | ?????????????????????#;## ##???????????? | | ?????????????????????# ?##; "#???????????? | | ?????????????????????#???# ;##?????????? | | ???????????????????????"""" ##????????? | | ???????????????????? ;##" ######???# | | ???????????????????! # ##" """##### | | ???????????????????! ;;###" | | ??????????????????? !""""""### #?#"# | | ??????????????????#?#######??? ?#### | | ??????????????????????????????? ???### | | ???????????????????????????????# ?????### | | ????????????????????????????????##??????## | | ?????????????????????????????????????????## | | ??????????????????????????????????????????##" | | ???????????????????????????????????????????#""" | | ???????????????????????????????????????????#" | | ???????????????????????????????????????????"" | | ???????????????????????????????????????????""" | | ???????????????????????????????????????????"" | | ????????????????????????????????????????????" | | ???????????????????????????????????????????? | | ?????????????????????????????????????????????? | | ???????????????????????????????????????????????? | | ?????????????????????????????????????????????????? | +----------------------------------------------------+ Best States ------------- Heat Dissipation 35 Energy Generation 10 Energy Capacity 250 Matter Stores 300 Matter Capacity 300 Sight Range 16 Terrain Scan Density 10 Armor Coverage 450 Evasion (%) 50 Recoil Reduction 2 Item Schematics ----------------- None Robot Schematics ------------------ None Fabricated ------------ Nothing Alien Tech Used ----------------- None Achievements -------------- None Challenges ------------ None Game ------ Seed ComponentHardcellThruster Manual? 0 Play Time 00:13:41 Cumulative 232.5 hours Start 2024.04.23 @ 20:47:09 End 2024.04.23 @ 20:57:05 Sessions 1 Manual Loads 0 Difficulty Rogue Special Mode None Game No. 228 Rogue 228 Adventurer 0 Explorer 0 Win Type - Total 6 Types 4/0/0/1/1/0/0/0/0 Lore% 70 Gallery% 79 Achievement% 67 Wizard Run 0 Options --------- Layout 0 ASCII 0 Keyboard 0 Movement Numpad Keybinds 0 Fullscreen 2 Font 18/SmallcapsGlow Map View 76x50 Zoom Use 0% Tactical HUD 1 Map Filters NONE Filters NONE Steam 1 RUN: d39ff3c9-292a-405b-9f40-8918acbfe81a